[Event "Blixt-SM 2025"]
[Site "Norrköping, Sweden"]
[Date "2025.09.26"]
[Round "1.3"]
[White "Norager, Mattias"]
[Black "Carlsson, Ludvig"]
[Result "0-1"]
[TimeControl "3 min + 2 sec/move"]
[BlackTitle "IM"]
[WhiteElo "1802"]
[BlackElo "2389"]

1. d4 {[%clk 00:02:59]} {[%emt 00:00:04]} d5 {[%clk 00:03:03]} {[%emt
00:00:02]} 2. c4 {[%clk 00:02:58]} {[%emt 00:00:03]} e5 {[%clk 00:03:03]}
{[%emt 00:00:02]} 3. cxd5 {[%clk 00:02:52]} {[%emt 00:00:08]} Qxd5 {[%clk
00:03:00]} {[%emt 00:00:04]} 4. e3 {[%clk 00:02:38]} {[%emt 00:00:16]} exd4
{[%clk 00:02:59]} {[%emt 00:00:03]} 5. Nc3 {[%clk 00:02:21]} {[%emt 00:00:20]}
Bb4 {[%clk 00:02:49]} {[%emt 00:00:12]} 6. Nf3 {[%clk 00:01:40]} {[%emt
00:00:43]} dxc3 {[%clk 00:02:39]} {[%emt 00:00:11]} 7. Qxd5 {[%clk 00:01:09]}
{[%emt 00:00:33]} cxb2+ {[%clk 00:02:39]} {[%emt 00:00:03]} 8. Nd2 {[%clk
00:00:48]} {[%emt 00:00:22]} Bxd2+ {[%clk 00:02:23]} {[%emt 00:00:18]} 9. Qxd2
{[%clk 00:00:43]} {[%emt 00:00:07]} bxa1=Q {[%clk 00:02:19]} {[%emt 00:00:05]}
10. Bc4 {[%clk 00:00:41]} {[%emt 00:00:05]} Qf6 {[%clk 00:01:56]} {[%emt
00:00:25]} 11. O-O {[%clk 00:00:39]} {[%emt 00:00:04]} Ne7 {[%clk 00:01:38]}
{[%emt 00:00:20]} 12. Bb2 {[%clk 00:00:39]} {[%emt 00:00:03]} Qg6 {[%clk
00:01:30]} {[%emt 00:00:08]} 13. Bd3 {[%clk 00:00:39]} {[%emt 00:00:03]} Bf5
{[%clk 00:01:25]} {[%emt 00:00:07]} 14. e4 {[%clk 00:00:40]} {[%emt 00:00:02]}
Be6 {[%clk 00:01:20]} {[%emt 00:00:06]} 15. f4 {[%clk 00:00:30]} {[%emt
00:00:12]} f5 {[%clk 00:00:53]} {[%emt 00:00:29]} 16. Re1 {[%clk 00:00:21]}
{[%emt 00:00:12]} Nbc6 {[%clk 00:00:46]} {[%emt 00:00:08]} 17. exf5 {[%clk
00:00:21]} {[%emt 00:00:02]} Bxf5 {[%clk 00:00:46]} {[%emt 00:00:02]} 18. Bc4
{[%clk 00:00:19]} {[%emt 00:00:05]} Qd6 {[%clk 00:00:39]} {[%emt 00:00:09]} 0-1

[Event "Blixt-SM 2025"]
[Site "Norrköping, Sweden"]
[Date "2025.09.26"]
[Round "2.9"]
[White "Eriksson, Kristian"]
[Black "Wernberg, Hugo"]
[Result "0-1"]
[TimeControl "3 min + 2 sec/move"]
[BlackTitle "FM"]
[WhiteElo "2033"]
[BlackElo "2285"]

1. e4 {[%clk 00:03:02]} {[%emt 00:00:02]} c5 {[%clk 00:03:04]} 2. Nf3 {[%clk
00:03:02]} {[%emt 00:00:02]} d6 {[%clk 00:03:05]} 3. d4 {[%clk 00:03:02]}
{[%emt 00:00:02]} cxd4 {[%clk 00:03:06]} 4. Nxd4 {[%clk 00:03:02]} Nf6 {[%clk
00:03:08]} 5. Nc3 {[%clk 00:03:02]} {[%emt 00:00:03]} a6 {[%clk 00:03:09]} 6.
Bc4 {[%clk 00:03:00]} {[%emt 00:00:04]} e6 {[%clk 00:03:10]} {[%emt 00:00:01]}
7. O-O {[%clk 00:02:57]} {[%emt 00:00:05]} Nbd7 {[%clk 00:03:09]} {[%emt
00:00:03]} 8. Bxe6 {[%clk 00:02:53]} {[%emt 00:00:05]} fxe6 {[%clk 00:03:08]}
{[%emt 00:00:03]} 9. Nxe6 {[%clk 00:02:54]} {[%emt 00:00:02]} Qa5 {[%clk
00:02:18]} {[%emt 00:00:53]} 10. Nd5 {[%clk 00:02:30]} {[%emt 00:00:26]} Kf7
{[%clk 00:01:19]} {[%emt 00:01:00]} 11. Bd2 {[%clk 00:02:04]} {[%emt 00:00:28]}
Qa4 {[%clk 00:01:12]} {[%emt 00:00:11]} 12. Re1 {[%clk 00:01:40]} {[%emt
00:00:25]} Ne5 {[%clk 00:00:53]} {[%emt 00:00:21]} 13. Ng5+ {[%clk 00:01:25]}
{[%emt 00:00:17]} Kg8 {[%clk 00:00:52]} {[%emt 00:00:03]} 14. Bc3 {[%clk
00:01:13]} {[%emt 00:00:14]} Qc6 {[%clk 00:00:31]} {[%emt 00:00:23]} 15. f4
{[%clk 00:00:50]} {[%emt 00:00:25]} Ned7 {[%clk 00:00:26]} {[%emt 00:00:08]} 16.
Bxf6 {[%clk 00:00:42]} {[%emt 00:00:09]} Nxf6 {[%clk 00:00:25]} {[%emt
00:00:03]} 17. Kh1 {[%clk 00:00:26]} {[%emt 00:00:18]} h6 {[%clk 00:00:17]}
{[%emt 00:00:10]} 18. Nf3 {[%clk 00:00:24]} {[%emt 00:00:03]} Bg4 {[%clk
00:00:12]} {[%emt 00:00:07]} 19. Qd4 {[%clk 00:00:20]} {[%emt 00:00:07]} Nxd5
{[%clk 00:00:09]} {[%emt 00:00:05]} 20. exd5 {[%clk 00:00:20]} {[%emt
00:00:02]} Qc5 {[%clk 00:00:09]} {[%emt 00:00:02]} 21. Qxc5 {[%clk 00:00:15]}
{[%emt 00:00:07]} dxc5 {[%clk 00:00:09]} {[%emt 00:00:01]} 22. Ne5 {[%clk
00:00:14]} {[%emt 00:00:04]} Bf5 {[%clk 00:00:10]} {[%emt 00:00:01]} 23. c4
{[%clk 00:00:14]} {[%emt 00:00:02]} Bd6 {[%clk 00:00:11]} 24. Rad1 {[%clk
00:00:12]} {[%emt 00:00:04]} Kf8 {[%clk 00:00:10]} {[%emt 00:00:03]} 25. g4
{[%clk 00:00:10]} {[%emt 00:00:04]} Bh7 {[%clk 00:00:10]} {[%emt 00:00:02]} 26.
Nd7+ {[%clk 00:00:07]} {[%emt 00:00:05]} Kf7 {[%clk 00:00:12]} {[%emt
00:00:01]} 27. Ne5+ {[%clk 00:00:07]} {[%emt 00:00:02]} Bxe5 {[%clk 00:00:09]}
{[%emt 00:00:04]} 28. fxe5 {[%clk 00:00:08]} {[%emt 00:00:02]} Ke7 {[%clk
00:00:10]} 29. e6 {[%clk 00:00:07]} {[%emt 00:00:03]} Rad8 {[%clk 00:00:10]}
{[%emt 00:00:03]} 30. Rf1 {[%clk 00:00:07]} Rhf8 {[%clk 00:00:11]} {[%emt
00:00:01]} 31. b3 {[%clk 00:00:08]} Be4+ {[%clk 00:00:11]} {[%emt 00:00:03]} 32.
Kg1 {[%clk 00:00:09]} Bf3 {[%clk 00:00:12]} {[%emt 00:00:01]} 33. Rd2 {[%clk
00:00:08]} {[%emt 00:00:03]} Bxg4 {[%clk 00:00:12]} {[%emt 00:00:01]} 34. d6+
{[%clk 00:00:07]} {[%emt 00:00:03]} Kxe6 {[%clk 00:00:12]} {[%emt 00:00:02]} 35.
Rxf8 {[%clk 00:00:07]} {[%emt 00:00:02]} Rxf8 {[%clk 00:00:14]} 36. Kg2 {[%clk
00:00:05]} {[%emt 00:00:04]} Kd7 {[%clk 00:00:14]} {[%emt 00:00:02]} 37. Kg3
{[%clk 00:00:05]} {[%emt 00:00:01]} Be6 {[%clk 00:00:15]} 0-1

[Event "Blixt-SM 2025"]
[Site "Norrköping, Sweden"]
[Date "2025.09.26"]
[Round "4.5"]
[White "Stahlberg, Adam"]
[Black "Tadjerbashi, Amir"]
[Result "0-1"]
[TimeControl "3 min + 2 sec/move"]
[WhiteElo "1911"]
[BlackElo "2235"]

1. d4 {[%clk 00:03:02]} {[%emt 00:00:02]} d5 {[%clk 00:03:03]} {[%emt
00:00:01]} 2. c4 {[%clk 00:03:02]} {[%emt 00:00:02]} e6 {[%clk 00:03:04]}
{[%emt 00:00:01]} 3. cxd5 {[%clk 00:03:02]} {[%emt 00:00:02]} exd5 {[%clk
00:03:05]} {[%emt 00:00:01]} 4. Nc3 {[%clk 00:03:03]} {[%emt 00:00:02]} c6
{[%clk 00:03:05]} {[%emt 00:00:02]} 5. Nf3 {[%clk 00:03:03]} {[%emt 00:00:01]}
Nf6 {[%clk 00:03:06]} 6. Bg5 {[%clk 00:03:03]} {[%emt 00:00:01]} Be7 {[%clk
00:03:07]} {[%emt 00:00:02]} 7. e3 {[%clk 00:03:04]} Bf5 {[%clk 00:03:08]} 8.
Bd3 {[%clk 00:03:04]} {[%emt 00:00:02]} Bxd3 {[%clk 00:03:09]} {[%emt
00:00:02]} 9. Qxd3 {[%clk 00:03:04]} {[%emt 00:00:01]} Nbd7 {[%clk 00:03:10]}
10. O-O {[%clk 00:03:03]} {[%emt 00:00:04]} O-O {[%clk 00:03:10]} {[%emt
00:00:01]} 11. a3 {[%clk 00:03:03]} {[%emt 00:00:02]} a5 {[%clk 00:03:11]} 12.
Rab1 {[%clk 00:03:00]} {[%emt 00:00:05]} Ne4 {[%clk 00:03:08]} {[%emt
00:00:06]} 13. Bxe7 {[%clk 00:02:57]} {[%emt 00:00:04]} Qxe7 {[%clk 00:03:09]}
{[%emt 00:00:01]} 14. Rfc1 {[%clk 00:02:27]} {[%emt 00:00:32]} Nd6 {[%clk
00:02:55]} {[%emt 00:00:15]} 15. Nd2 {[%clk 00:02:22]} {[%emt 00:00:08]} a4
{[%clk 00:02:47]} {[%emt 00:00:10]} 16. b3 {[%clk 00:02:12]} {[%emt 00:00:12]}
axb3 {[%clk 00:02:47]} {[%emt 00:00:02]} 17. Rxb3 {[%clk 00:02:12]} {[%emt
00:00:02]} b5 {[%clk 00:02:44]} {[%emt 00:00:04]} 18. h3 {[%clk 00:02:02]}
{[%emt 00:00:13]} Nc4 {[%clk 00:02:39]} {[%emt 00:00:07]} 19. a4 {[%clk
00:01:46]} {[%emt 00:00:18]} bxa4 {[%clk 00:02:39]} {[%emt 00:00:02]} 20. Rb7
{[%clk 00:01:47]} Nxd2 {[%clk 00:01:21]} {[%emt 00:01:21]} 21. Qxd2 {[%clk
00:01:47]} {[%emt 00:00:02]} Qd6 {[%clk 00:01:22]} {[%emt 00:00:01]} 22. Qc2
{[%clk 00:01:35]} {[%emt 00:00:14]} a3 {[%clk 00:01:23]} {[%emt 00:00:02]} 23.
Na2 {[%clk 00:01:36]} Rfc8 {[%clk 00:01:11]} {[%emt 00:00:14]} 24. Nb4 {[%clk
00:01:24]} {[%emt 00:00:13]} c5 {[%clk 00:01:12]} {[%emt 00:00:02]} 25. dxc5
{[%clk 00:00:44]} {[%emt 00:00:42]} Rxc5 {[%clk 00:01:07]} {[%emt 00:00:06]} 26.
Qd1 {[%clk 00:00:37]} {[%emt 00:00:09]} Rxc1 {[%clk 00:01:06]} {[%emt
00:00:05]} 27. Qxc1 {[%clk 00:00:37]} {[%emt 00:00:02]} a2 {[%clk 00:00:41]}
{[%emt 00:00:27]} 28. Nxa2 {[%clk 00:00:19]} {[%emt 00:00:20]} Rxa2 {[%clk
00:00:41]} {[%emt 00:00:01]} 29. Qc8+ {[%clk 00:00:19]} {[%emt 00:00:01]} Nf8
{[%clk 00:00:42]} {[%emt 00:00:02]} 30. g3 {[%clk 00:00:14]} {[%emt 00:00:07]}
Qf6 {[%clk 00:00:29]} {[%emt 00:00:15]} 0-1

[ePGN "0.1;DGT LiveChess/2.2.7"]

[Event "Blixt-SM 2025"]
[Site "Norrköping, Sweden"]
[Date "2025.09.26"]
[Round "6.1"]
[White "Seo, Jung Min"]
[Black "Tadjerbashi, Amir"]
[Result "1-0"]
[TimeControl "3 min + 2 sec/move"]
[WhiteTitle "IM"]
[WhiteElo "2480"]
[BlackElo "2235"]

1. d4 {[%clk 00:03:04]} d5 {[%clk 00:03:03]} {[%emt 00:00:01]} 2. Nf3 {[%clk
00:03:05]} Nf6 {[%clk 00:03:04]} {[%emt 00:00:01]} 3. e3 {[%clk 00:03:06]} c6
{[%clk 00:03:01]} {[%emt 00:00:05]} 4. Bd3 {[%clk 00:03:05]} {[%emt 00:00:03]}
Bg4 {[%clk 00:02:58]} {[%emt 00:00:05]} 5. h3 {[%clk 00:02:58]} {[%emt
00:00:09]} Bh5 {[%clk 00:03:00]} 6. c4 {[%clk 00:02:52]} {[%emt 00:00:08]} e6
{[%clk 00:02:59]} {[%emt 00:00:03]} 7. Nbd2 {[%clk 00:02:45]} {[%emt 00:00:09]}
Nbd7 {[%clk 00:02:59]} {[%emt 00:00:02]} 8. O-O {[%clk 00:02:45]} {[%emt
00:00:02]} Bd6 {[%clk 00:02:52]} {[%emt 00:00:10]} 9. b3 {[%clk 00:02:38]}
{[%emt 00:00:08]} O-O {[%clk 00:02:42]} {[%emt 00:00:12]} 10. Bb2 {[%clk
00:02:40]} Qe7 {[%clk 00:02:43]} {[%emt 00:00:01]} 11. Qc2 {[%clk 00:02:40]}
{[%emt 00:00:02]} e5 {[%clk 00:02:35]} {[%emt 00:00:10]} 12. cxd5 {[%clk
00:02:14]} {[%emt 00:00:28]} cxd5 {[%clk 00:02:36]} {[%emt 00:00:02]} 13. dxe5
{[%clk 00:02:14]} {[%emt 00:00:01]} Nxe5 {[%clk 00:02:36]} {[%emt 00:00:02]} 14.
Bxe5 Bxe5 {[%clk 00:02:37]} 15. Nxe5 {[%clk 00:02:16]} Qxe5 {[%clk 00:02:38]}
{[%emt 00:00:01]} 16. Rac1 {[%clk 00:02:16]} {[%emt 00:00:01]} Rfd8 {[%clk
00:02:02]} {[%emt 00:00:38]} 17. Qc7 {[%clk 00:02:10]} {[%emt 00:00:08]} Qxc7
{[%clk 00:01:38]} {[%emt 00:00:26]} 18. Rxc7 {[%clk 00:02:11]} {[%emt
00:00:01]} Rab8 {[%clk 00:01:39]} {[%emt 00:00:01]} 19. Rfc1 {[%clk 00:02:05]}
{[%emt 00:00:08]} a6 {[%clk 00:01:40]} {[%emt 00:00:02]} 20. g4 {[%clk
00:01:58]} {[%emt 00:00:09]} Bg6 {[%clk 00:01:41]} 21. Bxg6 hxg6 {[%clk
00:01:42]} 22. Nf3 {[%clk 00:01:56]} {[%emt 00:00:04]} Rd7 {[%clk 00:01:31]}
{[%emt 00:00:14]} 23. Ne5 {[%clk 00:01:54]} {[%emt 00:00:03]} Rxc7 {[%clk
00:01:17]} {[%emt 00:00:16]} 24. Rxc7 {[%clk 00:01:54]} {[%emt 00:00:02]} d4
{[%clk 00:01:06]} {[%emt 00:00:13]} 25. exd4 {[%clk 00:01:48]} {[%emt
00:00:08]} Rd8 {[%clk 00:01:08]} 26. Nxf7 {[%clk 00:01:39]} {[%emt 00:00:10]}
Rxd4 {[%clk 00:01:08]} {[%emt 00:00:02]} 27. Ne5 {[%clk 00:01:37]} {[%emt
00:00:03]} b5 {[%clk 00:00:49]} {[%emt 00:00:21]} 28. Kg2 {[%clk 00:01:15]}
{[%emt 00:00:24]} Rd2 {[%clk 00:00:44]} {[%emt 00:00:07]} 29. Rc8+ {[%clk
00:01:11]} {[%emt 00:00:06]} Kh7 {[%clk 00:00:45]} {[%emt 00:00:02]} 30. Nf3
{[%clk 00:01:04]} {[%emt 00:00:08]} Rd5 {[%clk 00:00:44]} {[%emt 00:00:04]} 31.
h4 {[%clk 00:00:54]} {[%emt 00:00:11]} g5 {[%clk 00:00:45]} 32. Nxg5+ {[%clk
00:00:50]} {[%emt 00:00:06]} Kg6 {[%clk 00:00:47]} 33. Kg3 {[%clk 00:00:40]}
{[%emt 00:00:12]} Rd4 {[%clk 00:00:20]} {[%emt 00:00:29]} 34. f3 {[%clk
00:00:38]} {[%emt 00:00:04]} Rd6 {[%clk 00:00:11]} {[%emt 00:00:11]} 35. Nh3
{[%clk 00:00:28]} {[%emt 00:00:11]} Kf7 {[%clk 00:00:11]} {[%emt 00:00:03]} 36.
Nf4 {[%clk 00:00:24]} {[%emt 00:00:06]} Rd2 {[%clk 00:00:10]} {[%emt 00:00:03]}
37. Rc7+ {[%clk 00:00:24]} {[%emt 00:00:02]} Kg8 {[%clk 00:00:11]} {[%emt
00:00:01]} 38. g5 {[%clk 00:00:20]} {[%emt 00:00:05]} Ne8 {[%clk 00:00:10]}
{[%emt 00:00:03]} 39. Ra7 {[%clk 00:00:14]} {[%emt 00:00:09]} Rxa2 {[%clk
00:00:10]} {[%emt 00:00:01]} 40. h5 {[%clk 00:00:08]} {[%emt 00:00:07]} Ra1
{[%clk 00:00:11]} {[%emt 00:00:02]} 41. Ng6 {[%clk 00:00:07]} {[%emt 00:00:03]}
a5 {[%clk 00:00:08]} {[%emt 00:00:06]} 42. Kf4 {[%clk 00:00:05]} {[%emt
00:00:04]} a4 {[%clk 00:00:09]} 43. b4 {[%clk 00:00:04]} {[%emt 00:00:03]} a3
{[%clk 00:00:10]} 44. h6 {[%clk 00:00:05]} gxh6 {[%clk 00:00:11]} {[%emt
00:00:01]} 45. gxh6 {[%clk 00:00:06]} Rh1 {[%clk 00:00:10]} {[%emt 00:00:03]}
46. Rxa3 {[%clk 00:00:05]} {[%emt 00:00:03]} Rxh6 {[%clk 00:00:10]} {[%emt
00:00:02]} 47. Kg5 {[%clk 00:00:06]} {[%emt 00:00:01]} Rh1 {[%clk 00:00:10]}
{[%emt 00:00:02]} 48. Ne5 {[%clk 00:00:04]} {[%emt 00:00:04]} Rg1+ {[%clk
00:00:10]} {[%emt 00:00:02]} 49. Ng4 {[%clk 00:00:05]} Kf7 {[%clk 00:00:11]} 50.
Ra7+ {[%clk 00:00:06]} Ke6 {[%clk 00:00:12]} 51. Rb7 {[%clk 00:00:05]} {[%emt
00:00:02]} Nd6 {[%clk 00:00:14]} 52. Rb6 {[%clk 00:00:05]} {[%emt 00:00:02]}
Rb1 {[%clk 00:00:12]} {[%emt 00:00:03]} 53. f4 {[%clk 00:00:06]} {[%emt
00:00:01]} Rxb4 {[%clk 00:00:12]} {[%emt 00:00:03]} 54. f5+ {[%clk 00:00:08]}
Ke7 {[%clk 00:00:13]} 55. f6+ {[%clk 00:00:06]} {[%emt 00:00:04]} Kd7 {[%clk
00:00:06]} {[%emt 00:00:09]} 56. Ne5+ {[%clk 00:00:06]} {[%emt 00:00:02]} Ke6
{[%clk 00:00:07]} {[%emt 00:00:02]} 57. f7 {[%clk 00:00:04]} {[%emt 00:00:03]}
Ke7 {[%clk 00:00:04]} {[%emt 00:00:05]} 58. Rxd6 {[%clk 00:00:04]} {[%emt
00:00:02]} Re4 {[%clk 00:00:05]} 59. Rd5 {[%clk 00:00:05]} {[%emt 00:00:02]} b4
{[%clk 00:00:07]} 60. Kf5 {[%clk 00:00:06]} Re1 {[%clk 00:00:08]} 61. Rd7+
{[%clk 00:00:06]} Kf8 {[%clk 00:00:09]} {[%emt 00:00:02]} 62. Rd8+ {[%clk
00:00:07]} {[%emt 00:00:01]} 1-0

[Event "Blixt-SM 2025"]
[Site "Norrköping, Sweden"]
[Date "2025.09.26"]
[Round "7.7"]
[White "Nygren, Kim"]
[Black "Tornberg, Carlos"]
[Result "1-0"]
[TimeControl "3 min + 2 sec/move"]
[WhiteTitle "CM"]
[WhiteElo "2173"]
[BlackElo "2053"]

1. d4 {[%clk 00:03:02]} {[%emt 00:00:01]} e6 {[%clk 00:03:03]} {[%emt
00:00:02]} 2. e4 {[%clk 00:03:02]} {[%emt 00:00:02]} d5 {[%clk 00:03:04]} 3.
Nc3 {[%clk 00:03:03]} Nf6 {[%clk 00:03:06]} 4. Bg5 {[%clk 00:03:00]} {[%emt
00:00:04]} Bb4 {[%clk 00:03:06]} {[%emt 00:00:02]} 5. e5 {[%clk 00:03:01]}
{[%emt 00:00:02]} h6 {[%clk 00:03:07]} 6. Be3 {[%clk 00:03:01]} {[%emt
00:00:01]} Ne4 {[%clk 00:03:05]} {[%emt 00:00:04]} 7. Nge2 {[%clk 00:03:01]}
{[%emt 00:00:02]} c5 {[%clk 00:03:02]} {[%emt 00:00:05]} 8. a3 {[%clk
00:03:02]} {[%emt 00:00:02]} cxd4 {[%clk 00:02:50]} {[%emt 00:00:13]} 9. Bxd4
{[%clk 00:03:03]} {[%emt 00:00:02]} Ba5 {[%clk 00:02:40]} {[%emt 00:00:12]} 10.
f3 {[%clk 00:02:42]} {[%emt 00:00:22]} Nxc3 {[%clk 00:02:33]} {[%emt 00:00:09]}
11. Nxc3 {[%clk 00:02:28]} {[%emt 00:00:16]} Nc6 {[%clk 00:02:33]} {[%emt
00:00:02]} 12. Bb5 {[%clk 00:02:12]} {[%emt 00:00:18]} O-O {[%clk 00:02:31]}
{[%emt 00:00:04]} 13. Bxc6 {[%clk 00:02:05]} {[%emt 00:00:09]} bxc6 {[%clk
00:02:32]} 14. b4 {[%clk 00:02:03]} {[%emt 00:00:04]} Bb6 {[%clk 00:02:26]}
{[%emt 00:00:08]} 15. O-O {[%clk 00:01:47]} {[%emt 00:00:18]} Ba6 {[%clk
00:02:23]} {[%emt 00:00:05]} 16. Rf2 {[%clk 00:01:41]} {[%emt 00:00:07]} Rc8
{[%clk 00:02:08]} {[%emt 00:00:18]} 17. Na4 {[%clk 00:01:40]} {[%emt 00:00:03]}
Qc7 {[%clk 00:01:21]} {[%emt 00:00:50]} 18. Qd2 {[%clk 00:01:33]} {[%emt
00:00:08]} Bc4 {[%clk 00:00:58]} {[%emt 00:00:25]} 19. Re1 {[%clk 00:01:25]}
{[%emt 00:00:10]} Rfd8 {[%clk 00:00:52]} {[%emt 00:00:09]} 20. g4 {[%clk
00:01:18]} {[%emt 00:00:10]} Qb7 {[%clk 00:00:51]} {[%emt 00:00:02]} 21. Nc5
{[%clk 00:01:11]} {[%emt 00:00:09]} Bxc5 {[%clk 00:00:32]} {[%emt 00:00:21]} 22.
Bxc5 {[%clk 00:01:04]} {[%emt 00:00:09]} Qb5 {[%clk 00:00:33]} {[%emt
00:00:02]} 23. g5 {[%clk 00:01:01]} {[%emt 00:00:05]} h5 {[%clk 00:00:28]}
{[%emt 00:00:07]} 24. g6 {[%clk 00:01:02]} fxg6 {[%clk 00:00:13]} {[%emt
00:00:17]} 25. Rg2 {[%clk 00:00:52]} {[%emt 00:00:12]} Qb7 {[%clk 00:00:14]}
{[%emt 00:00:01]} 26. Rxg6 {[%clk 00:00:50]} {[%emt 00:00:05]} Qf7 {[%clk
00:00:14]} {[%emt 00:00:02]} 27. Qg5 {[%clk 00:00:46]} {[%emt 00:00:05]} a5
{[%clk 00:00:12]} {[%emt 00:00:05]} 28. Rf6 {[%clk 00:00:41]} {[%emt 00:00:06]}
Qe8 {[%clk 00:00:12]} {[%emt 00:00:02]} 29. f4 {[%clk 00:00:32]} {[%emt
00:00:11]} Rd7 {[%clk 00:00:13]} {[%emt 00:00:02]} 30. Re3 {[%clk 00:00:32]}
{[%emt 00:00:02]} Rf7 {[%clk 00:00:13]} {[%emt 00:00:01]} 31. Rh3 {[%clk
00:00:27]} {[%emt 00:00:07]} axb4 {[%clk 00:00:12]} {[%emt 00:00:04]} 32. axb4
{[%clk 00:00:24]} {[%emt 00:00:05]} Ra8 {[%clk 00:00:07]} {[%emt 00:00:07]} 33.
Rxh5 {[%clk 00:00:18]} {[%emt 00:00:08]} Rxf6 {[%clk 00:00:06]} {[%emt
00:00:03]} 34. exf6 {[%clk 00:00:18]} {[%emt 00:00:02]} Ra1+ {[%clk 00:00:04]}
{[%emt 00:00:04]} 35. Kg2 {[%clk 00:00:17]} {[%emt 00:00:02]} Rc1 {[%clk
00:00:04]} {[%emt 00:00:04]} 36. Qxg7# {[%emt 00:00:03]} 1-0

[Event "Blixt-SM 2025"]
[Site "Norrköping, Sweden"]
[Date "2025.09.26"]
[Round "9.3"]
[White "Persson, Richard"]
[Black "Rogoz, Vladyslav"]
[Result "0-1"]
[TimeControl "3 min + 2 sec/move"]
[WhiteTitle "CM"]
[WhiteElo "2106"]
[BlackElo "2108"]

1. e4 {[%clk 00:03:01]} {[%emt 00:00:02]} e6 {[%clk 00:03:04]} 2. d4 {[%clk
00:03:00]} {[%emt 00:00:03]} d5 {[%clk 00:03:05]} 3. Nc3 {[%clk 00:03:00]}
{[%emt 00:00:03]} Bb4 {[%clk 00:03:06]} {[%emt 00:00:02]} 4. e5 {[%clk
00:02:59]} {[%emt 00:00:03]} c5 {[%clk 00:03:06]} {[%emt 00:00:01]} 5. a3
{[%clk 00:02:59]} {[%emt 00:00:01]} Bxc3+ {[%clk 00:03:07]} {[%emt 00:00:02]} 6.
bxc3 {[%clk 00:03:00]} {[%emt 00:00:01]} Ne7 {[%clk 00:03:08]} 7. Qg4 {[%clk
00:02:58]} {[%emt 00:00:04]} O-O {[%clk 00:03:09]} {[%emt 00:00:02]} 8. Nf3
{[%clk 00:02:45]} {[%emt 00:00:14]} f5 {[%clk 00:03:09]} {[%emt 00:00:03]} 9.
Qg3 {[%clk 00:02:40]} {[%emt 00:00:06]} Nbc6 {[%clk 00:03:03]} {[%emt
00:00:08]} 10. Bd3 {[%clk 00:02:29]} {[%emt 00:00:12]} Qa5 {[%clk 00:03:02]}
{[%emt 00:00:04]} 11. Bd2 {[%clk 00:02:23]} {[%emt 00:00:08]} c4 {[%clk
00:03:02]} {[%emt 00:00:03]} 12. Be2 {[%clk 00:02:21]} {[%emt 00:00:04]} Qa4
{[%clk 00:03:01]} {[%emt 00:00:03]} 13. Bd1 {[%clk 00:02:12]} {[%emt 00:00:10]}
b5 {[%clk 00:03:00]} {[%emt 00:00:04]} 14. h4 {[%clk 00:02:03]} {[%emt
00:00:10]} a5 {[%clk 00:02:58]} {[%emt 00:00:05]} 15. O-O {[%clk 00:01:46]}
{[%emt 00:00:18]} b4 {[%clk 00:02:58]} {[%emt 00:00:02]} 16. h5 {[%clk
00:01:28]} {[%emt 00:00:20]} b3 {[%clk 00:02:57]} {[%emt 00:00:04]} 17. Bc1
{[%clk 00:01:02]} {[%emt 00:00:27]} bxc2 {[%clk 00:02:49]} {[%emt 00:00:10]} 18.
Be2 {[%clk 00:01:02]} {[%emt 00:00:02]} Rb8 {[%clk 00:02:47]} {[%emt 00:00:05]}
19. h6 {[%clk 00:00:53]} {[%emt 00:00:10]} g6 {[%clk 00:02:48]} 20. Bg5 {[%clk
00:00:50]} {[%emt 00:00:05]} Rb3 {[%clk 00:02:44]} {[%emt 00:00:06]} 21. Qh4
{[%clk 00:00:47]} {[%emt 00:00:04]} Rf7 {[%clk 00:02:42]} {[%emt 00:00:05]} 22.
Bd2 {[%clk 00:00:44]} {[%emt 00:00:05]} Rxa3 {[%clk 00:02:41]} {[%emt
00:00:04]} 23. Rac1 {[%clk 00:00:45]} {[%emt 00:00:02]} Ra2 {[%clk 00:02:28]}
{[%emt 00:00:15]} 24. Bg5 {[%clk 00:00:39]} {[%emt 00:00:08]} Qb3 {[%clk
00:02:23]} {[%emt 00:00:08]} 25. Bf6 {[%clk 00:00:38]} {[%emt 00:00:02]} Rb2
{[%clk 00:02:03]} {[%emt 00:00:22]} 26. Ng5 {[%clk 00:00:37]} {[%emt 00:00:03]}
Rb1 {[%clk 00:02:03]} {[%emt 00:00:02]} 27. Nxf7 {[%clk 00:00:35]} {[%emt
00:00:03]} Kxf7 {[%clk 00:01:52]} {[%emt 00:00:14]} 28. Bg5 {[%clk 00:00:25]}
{[%emt 00:00:12]} a4 {[%clk 00:01:49]} {[%emt 00:00:05]} 29. Bd2 {[%clk
00:00:23]} {[%emt 00:00:04]} Ng8 {[%clk 00:01:48]} {[%emt 00:00:04]} 30. g4
{[%clk 00:00:14]} {[%emt 00:00:11]} a3 {[%clk 00:01:48]} {[%emt 00:00:03]} 31.
gxf5 {[%clk 00:00:15]} {[%emt 00:00:01]} exf5 {[%clk 00:01:48]} {[%emt
00:00:01]} 32. e6+ {[%clk 00:00:14]} {[%emt 00:00:03]} Bxe6 {[%clk 00:01:49]}
{[%emt 00:00:01]} 33. Qf4 {[%clk 00:00:15]} {[%emt 00:00:02]} a2 {[%clk
00:01:46]} {[%emt 00:00:04]} 34. Qc7+ {[%clk 00:00:16]} {[%emt 00:00:01]} Nce7
{[%clk 00:01:47]} 35. Qa7 {[%clk 00:00:03]} {[%emt 00:00:16]} Qb2 {[%clk
00:01:33]} {[%emt 00:00:15]} 0-1